[Event "Late-Titled-Tuesday-Blitz-May-14-2024"]
[Site "Chess.com"]
[Date "2024.05.14"]
[Round "7"]
[White "marik_spb"]
[Black "Crazy_girl99"]
[Result "0-1"]
[WhiteElo "2508"]
[BlackElo "2634"]
[TimeControl "180+1"]
[EndTime "15:16:51 PDT"]
[Termination "Crazy_girl99 won by resignation"]

1. e4 {[%clk 0:02:35]} 1... e5 {[%clk 0:02:51.9]} 2. Nf3 {[%clk 0:02:34.4]} 2...
Nc6 {[%clk 0:02:52.2]} 3. Bb5 {[%clk 0:02:33.6]} 3... a6 {[%clk 0:02:51.9]} 4.
Ba4 {[%clk 0:02:33.5]} 4... Nf6 {[%clk 0:02:52.3]} 5. d4 {[%clk 0:02:29.8]} 5...
Nxe4 {[%clk 0:02:40.4]} 6. dxe5 {[%clk 0:02:25.3]} 6... Nc5 {[%clk 0:02:37.3]}
7. Bb3 {[%clk 0:02:25.1]} 7... Nxb3 {[%clk 0:02:35]} 8. axb3 {[%clk 0:02:26]}
8... Be7 {[%clk 0:02:35.1]} 9. O-O {[%clk 0:02:25.8]} 9... O-O {[%clk 0:02:35]}
10. Nc3 {[%clk 0:02:26.2]} 10... d6 {[%clk 0:02:35.1]} 11. Bf4 {[%clk
0:02:21.1]} 11... dxe5 {[%clk 0:02:12.4]} 12. Nxe5 {[%clk 0:02:22]} 12... Nxe5
{[%clk 0:02:12.8]} 13. Bxe5 {[%clk 0:02:20.4]} 13... Bf5 {[%clk 0:02:08.1]} 14.
Qf3 {[%clk 0:02:10.4]} 14... Qc8 {[%clk 0:01:55.9]} 15. Nd5 {[%clk 0:02:02.9]}
15... Bd8 {[%clk 0:01:50.5]} 16. Bxc7 {[%clk 0:01:48.8]} 16... Be6 {[%clk
0:01:25.7]} 17. Bxd8 {[%clk 0:01:44.6]} 17... Bxd5 {[%clk 0:01:17.8]} 18. Qxd5
{[%clk 0:01:45.5]} 18... Rxd8 {[%clk 0:01:17.8]} 19. Qc4 {[%clk 0:01:34.7]}
19... Qf5 {[%clk 0:01:15.4]} 20. c3 {[%clk 0:01:20.9]} 20... Qc2 {[%clk
0:01:13.6]} 21. Rab1 {[%clk 0:01:08.4]} 21... h6 {[%clk 0:01:03.1]} 22. b4
{[%clk 0:01:07.5]} 22... Rac8 {[%clk 0:01:00.1]} 23. Qf4 {[%clk 0:01:06]} 23...
Rd2 {[%clk 0:00:56.1]} 24. h3 {[%clk 0:01:05.9]} 24... Re8 {[%clk 0:00:55.2]}
25. Rfe1 {[%clk 0:00:53.5]} 25... Rde2 {[%clk 0:00:52.1]} 26. Rec1 {[%clk
0:00:47.5]} 26... Qb3 {[%clk 0:00:36.1]} 27. Qf3 {[%clk 0:00:37.1]} 27... Rxb2
{[%clk 0:00:26.3]} 28. Rxb2 {[%clk 0:00:38]} 28... Qxb2 {[%clk 0:00:26.9]} 29.
Rd1 {[%clk 0:00:38.6]} 29... Qb3 {[%clk 0:00:15]} 30. Rd7 {[%clk 0:00:35.5]}
30... Re1+ {[%clk 0:00:15]} 31. Kh2 {[%clk 0:00:35.1]} 31... Qe6 {[%clk
0:00:15.7]} 32. Rxb7 {[%clk 0:00:27.6]} 32... Qe5+ {[%clk 0:00:13.2]} 33. g3
{[%clk 0:00:20.6]} 33... Qe6 {[%clk 0:00:13.4]} 34. Kg2 {[%clk 0:00:19]} 34...
g6 {[%clk 0:00:13.2]} 35. Rc7 {[%clk 0:00:18]} 35... Rc1 {[%clk 0:00:10.7]} 36.
Rc6 {[%clk 0:00:17.6]} 36... Qe1 {[%clk 0:00:10.2]} 37. Rc8+ {[%clk 0:00:16.4]}
37... Kg7 {[%clk 0:00:10.5]} 38. Rg8+ {[%clk 0:00:08.4]} 38... Kxg8 {[%clk
0:00:10.2]} 39. Qa8+ {[%clk 0:00:07.8]} 39... Kg7 {[%clk 0:00:10.7]} 40. Kf3
{[%clk 0:00:05.4]} 40... Qh1+ {[%clk 0:00:09.9]} 41. Kg4 {[%clk 0:00:05.9]}
41... Qxa8 {[%clk 0:00:10.8]} 0-1

[Event "Late-Titled-Tuesday-Blitz-May-14-2024"]
[Site "Chess.com"]
[Date "2024.05.14"]
[Round "7"]
[White "BestestBP"]
[Black "jup1978"]
[Result "0-1"]
[WhiteElo "2192"]
[BlackElo "2482"]
[TimeControl "180+1"]
[EndTime "15:16:51 PDT"]
[Termination "jup1978 won on time"]

1. c4 {[%clk 0:03:00.9]} 1... e6 {[%clk 0:02:58.6]} 2. e4 {[%clk 0:02:58.4]}
2... d5 {[%clk 0:02:59.5]} 3. cxd5 {[%clk 0:02:54.7]} 3... exd5 {[%clk
0:03:00.3]} 4. e5 {[%clk 0:02:55.4]} 4... d4 {[%clk 0:02:50.9]} 5. Nf3 {[%clk
0:02:55.9]} 5... Nc6 {[%clk 0:02:50.2]} 6. Bb5 {[%clk 0:02:56.2]} 6... Qd5
{[%clk 0:02:48.5]} 7. Bxc6+ {[%clk 0:02:44.4]} 7... Qxc6 {[%clk 0:02:46.7]} 8.
O-O {[%clk 0:02:43.1]} 8... Bc5 {[%clk 0:02:43.1]} 9. b4 {[%clk 0:02:39.2]} 9...
Bb6 {[%clk 0:02:33.8]} 10. Bb2 {[%clk 0:02:39.3]} 10... Bg4 {[%clk 0:02:31.3]}
11. Na3 {[%clk 0:02:18.8]} 11... Bxf3 {[%clk 0:02:28.7]} 12. gxf3 {[%clk
0:02:19.2]} 12... O-O-O {[%clk 0:02:24.6]} 13. Rc1 {[%clk 0:02:19.3]} 13... Qg6+
{[%clk 0:02:12]} 14. Kh1 {[%clk 0:02:18.1]} 14... Qf5 {[%clk 0:02:12.6]} 15. Nc4
{[%clk 0:02:14]} 15... Ne7 {[%clk 0:02:11.2]} 16. Nxb6+ {[%clk 0:02:12.9]} 16...
axb6 {[%clk 0:02:12.1]} 17. Qc2 {[%clk 0:01:47.6]} 17... Qxf3+ {[%clk
0:02:09.7]} 18. Kg1 {[%clk 0:01:47.7]} 18... Nd5 {[%clk 0:02:05.7]} 19. Rfe1
{[%clk 0:01:32.9]} 19... Rd7 {[%clk 0:02:01.3]} 20. Qe4 {[%clk 0:01:25.4]} 20...
Qxe4 {[%clk 0:01:40]} 21. Rxe4 {[%clk 0:01:26.3]} 21... Nxb4 {[%clk 0:01:37.9]}
22. Bxd4 {[%clk 0:01:25.7]} 22... c5 {[%clk 0:01:25.3]} 23. Bxc5 {[%clk
0:01:18]} 23... Nd3 {[%clk 0:01:23.6]} 24. Bd6+ {[%clk 0:00:38.8]} 24... Nxc1
{[%clk 0:01:21.7]} 25. Rc4+ {[%clk 0:00:39]} 25... Kd8 {[%clk 0:01:17.4]} 26.
Rxc1 {[%clk 0:00:38.8]} 26... Re8 {[%clk 0:01:11.6]} 27. d4 {[%clk 0:00:34]}
27... f6 {[%clk 0:01:10]} 28. f4 {[%clk 0:00:32.9]} 28... fxe5 {[%clk
0:01:09.6]} 29. fxe5 {[%clk 0:00:31.5]} 29... Re6 {[%clk 0:01:10.1]} 30. d5
{[%clk 0:00:17.4]} 30... Rexd6 {[%clk 0:01:08.5]} 31. exd6 {[%clk 0:00:18.3]}
31... Rxd6 {[%clk 0:01:09.2]} 32. Rd1 {[%clk 0:00:18.7]} 32... Kd7 {[%clk
0:01:08.5]} 33. Kf2 {[%clk 0:00:19.1]} 33... Rh6 {[%clk 0:01:08.6]} 34. Kg3
{[%clk 0:00:16.9]} 34... Kd6 {[%clk 0:01:08.5]} 35. h4 {[%clk 0:00:09.4]} 35...
Rh5 {[%clk 0:01:08.1]} 36. Rb1 {[%clk 0:00:09.2]} 36... Kc5 {[%clk 0:01:06.6]}
37. Rc1+ {[%clk 0:00:09.1]} 37... Kxd5 {[%clk 0:01:06.4]} 38. Rc7 {[%clk
0:00:09.9]} 38... g6 {[%clk 0:00:57.7]} 39. Rxb7 {[%clk 0:00:09]} 39... Kc6
{[%clk 0:00:57.8]} 40. Rf7 {[%clk 0:00:07.1]} 40... Kb5 {[%clk 0:00:53.8]} 41.
Kg4 {[%clk 0:00:04.2]} 41... Ka5 {[%clk 0:00:49.9]} 42. Ra7+ {[%clk 0:00:02.9]}
42... Kb4 {[%clk 0:00:50.2]} 43. Rb7 {[%clk 0:00:03.2]} 43... b5 {[%clk
0:00:50.5]} 44. Ra7 {[%clk 0:00:02.4]} 44... h6 {[%clk 0:00:42.3]} 45. Ra6
{[%clk 0:00:01.4]} 45... Rc5 {[%clk 0:00:40.9]} 46. Ra7 {[%clk 0:00:01.9]} 46...
Rc4+ {[%clk 0:00:39.7]} 47. Kg3 {[%clk 0:00:02.5]} 47... g5 {[%clk 0:00:37.3]}
48. hxg5 {[%clk 0:00:02.5]} 48... hxg5 {[%clk 0:00:38.2]} 49. Ra6 {[%clk
0:00:02.7]} 49... Kc3 {[%clk 0:00:37.1]} 50. Rg6 {[%clk 0:00:02.2]} 50... g4
{[%clk 0:00:37]} 51. Rc6 {[%clk 0:00:01.7]} 51... Rxc6 {[%clk 0:00:36.2]} 0-1

[Event "Late-Titled-Tuesday-Blitz-May-14-2024"]
[Site "Chess.com"]
[Date "2024.05.14"]
[Round "7"]
[White "sergoy"]
[Black "Rodalquilar"]
[Result "1-0"]
[WhiteElo "3015"]
[BlackElo "2868"]
[TimeControl "180+1"]
[EndTime "15:16:54 PDT"]
[Termination "sergoy won by resignation"]

1. d4 {[%clk 0:03:00.9]} 1... d5 {[%clk 0:02:59.9]} 2. c4 {[%clk 0:03:01.4]}
2... e6 {[%clk 0:03:00.1]} 3. Nf3 {[%clk 0:03:02]} 3... Nf6 {[%clk 0:02:59.2]}
4. Nc3 {[%clk 0:03:02.5]} 4... a6 {[%clk 0:02:58.1]} 5. cxd5 {[%clk 0:03:02.5]}
5... exd5 {[%clk 0:02:58.4]} 6. Qb3 {[%clk 0:03:02.3]} 6... c5 {[%clk
0:02:51.5]} 7. Bg5 {[%clk 0:03:00.1]} 7... c4 {[%clk 0:02:52]} 8. Qc2 {[%clk
0:02:55.8]} 8... Be6 {[%clk 0:02:34.6]} 9. Bxf6 {[%clk 0:02:50]} 9... Qxf6
{[%clk 0:02:33.9]} 10. e4 {[%clk 0:02:50.7]} 10... b5 {[%clk 0:02:25.4]} 11. a4
{[%clk 0:02:43.7]} 11... Nc6 {[%clk 0:01:57.7]} 12. exd5 {[%clk 0:02:41.7]}
12... Nb4 {[%clk 0:01:54.3]} 13. Qe4 {[%clk 0:02:41.6]} 13... Qf5 {[%clk
0:01:43.8]} 14. dxe6 {[%clk 0:02:19.8]} 14... Qxe4+ {[%clk 0:01:43.7]} 15. Nxe4
{[%clk 0:02:20.7]} 15... Nc2+ {[%clk 0:01:43.7]} 16. Kd2 {[%clk 0:02:18.7]}
16... Nxa1 {[%clk 0:01:44.2]} 17. exf7+ {[%clk 0:02:19]} 17... Kxf7 {[%clk
0:01:44.1]} 18. Bxc4+ {[%clk 0:02:19.2]} 18... bxc4 {[%clk 0:01:43.7]} 19. Rxa1
{[%clk 0:02:20]} 19... Bb4+ {[%clk 0:01:41.6]} 20. Ke3 {[%clk 0:02:13.7]} 20...
Rhe8 {[%clk 0:01:39.6]} 21. Rc1 {[%clk 0:02:13.4]} 21... Rac8 {[%clk 0:01:36.6]}
22. Ne5+ {[%clk 0:02:12.5]} 22... Kg8 {[%clk 0:01:19.2]} 23. Rxc4 {[%clk
0:02:08.3]} 23... Rb8 {[%clk 0:01:16.9]} 24. Nd3 {[%clk 0:01:59.5]} 24... Be7
{[%clk 0:01:11.4]} 25. g3 {[%clk 0:01:32.5]} 25... Rb3 {[%clk 0:01:09.8]} 26.
Rc3 {[%clk 0:01:27.2]} 26... Rb6 {[%clk 0:00:58.6]} 27. f4 {[%clk 0:01:25.7]}
27... Bb4 {[%clk 0:00:51.3]} 28. Rc7 {[%clk 0:01:18.5]} 28... Bd6 {[%clk
0:00:45.9]} 29. Rd7 {[%clk 0:01:16.7]} 29... Bf8 {[%clk 0:00:38.5]} 30. f5
{[%clk 0:01:05.4]} 30... Rb3 {[%clk 0:00:38.2]} 31. g4 {[%clk 0:01:05.4]} 31...
Bb4 {[%clk 0:00:32]} 32. h4 {[%clk 0:00:53]} 32... Bd2+ {[%clk 0:00:32.3]} 33.
Kxd2 {[%clk 0:00:42.5]} 33... Rxe4 {[%clk 0:00:32.4]} 34. Ne5 {[%clk 0:00:42.9]}
34... Rxb2+ {[%clk 0:00:32.8]} 35. Kd3 {[%clk 0:00:40.3]} 35... Rxe5 {[%clk
0:00:22.4]} 36. dxe5 {[%clk 0:00:39.8]} 36... Rb4 {[%clk 0:00:23.3]} 37. e6
{[%clk 0:00:39.3]} 37... Kf8 {[%clk 0:00:23.5]} 38. g5 {[%clk 0:00:36.6]} 38...
Rf4 {[%clk 0:00:23.2]} 39. Rf7+ {[%clk 0:00:36.6]} 39... Kg8 {[%clk 0:00:23.2]}
40. f6 {[%clk 0:00:34.6]} 40... gxf6 {[%clk 0:00:20.5]} 41. gxf6 {[%clk
0:00:35.2]} 41... Rf3+ {[%clk 0:00:13.5]} 42. Ke4 {[%clk 0:00:34.9]} 42... Rf1
{[%clk 0:00:14.1]} 43. Rg7+ {[%clk 0:00:29.8]} 43... Kh8 {[%clk 0:00:14.7]} 44.
Rd7 {[%clk 0:00:28.7]} 44... Rxf6 {[%clk 0:00:11.4]} 45. e7 {[%clk 0:00:27.6]}
45... Re6+ {[%clk 0:00:07.6]} 46. Kf5 {[%clk 0:00:27.7]} 46... Re1 {[%clk
0:00:07]} 47. Rd8+ {[%clk 0:00:27.9]} 47... Kg7 {[%clk 0:00:07.9]} 48. e8=Q
{[%clk 0:00:28.4]} 48... Rxe8 {[%clk 0:00:07.1]} 49. Rxe8 {[%clk 0:00:29.3]} 1-0

[Event "Late-Titled-Tuesday-Blitz-May-14-2024"]
[Site "Chess.com"]
[Date "2024.05.14"]
[Round "7"]
[White "munozmiguelangel1982"]
[Black "zverr1"]
[Result "0-1"]
[WhiteElo "2256"]
[BlackElo "2452"]
[TimeControl "180+1"]
[EndTime "15:16:57 PDT"]
[Termination "zverr1 won on time"]

1. d4 {[%clk 0:03:00.9]} 1... d5 {[%clk 0:02:59.1]} 2. Nf3 {[%clk 0:03:00.7]}
2... Nf6 {[%clk 0:02:59]} 3. g3 {[%clk 0:03:01.2]} 3... e6 {[%clk 0:02:59.1]} 4.
Bg2 {[%clk 0:03:01.8]} 4... Be7 {[%clk 0:03:00]} 5. O-O {[%clk 0:03:02]} 5...
O-O {[%clk 0:03:00.9]} 6. c4 {[%clk 0:03:02]} 6... dxc4 {[%clk 0:03:01.8]} 7.
Qa4 {[%clk 0:02:57.8]} 7... c6 {[%clk 0:03:01.3]} 8. Qxc4 {[%clk 0:02:56.8]}
8... b5 {[%clk 0:03:02.2]} 9. Qc2 {[%clk 0:02:56.6]} 9... Bb7 {[%clk 0:03:02.7]}
10. Bd2 {[%clk 0:02:48.5]} 10... Nbd7 {[%clk 0:02:58.6]} 11. b4 {[%clk
0:02:47.6]} 11... Nb6 {[%clk 0:02:46.4]} 12. a3 {[%clk 0:02:45.5]} 12... Nc4
{[%clk 0:02:45.9]} 13. Bc3 {[%clk 0:02:41]} 13... a5 {[%clk 0:02:44.3]} 14. Nbd2
{[%clk 0:02:40.4]} 14... Nxd2 {[%clk 0:02:27.8]} 15. Nxd2 {[%clk 0:02:39]} 15...
Nd5 {[%clk 0:02:25.6]} 16. e4 {[%clk 0:02:34.8]} 16... Nxc3 {[%clk 0:02:23.9]}
17. Qxc3 {[%clk 0:02:35.4]} 17... axb4 {[%clk 0:02:21.6]} 18. axb4 {[%clk
0:02:36.3]} 18... Qd6 {[%clk 0:02:22]} 19. Qc5 {[%clk 0:02:27.6]} 19... Qxc5
{[%clk 0:02:13.8]} 20. dxc5 {[%clk 0:02:19.8]} 20... Bf6 {[%clk 0:02:12.6]} 21.
Rxa8 {[%clk 0:02:08.4]} 21... Rxa8 {[%clk 0:02:13.5]} 22. Nf3 {[%clk 0:02:01.9]}
22... Bc3 {[%clk 0:02:10.1]} 23. Rd1 {[%clk 0:01:59]} 23... Ra1 {[%clk
0:01:57.7]} 24. Rxa1 {[%clk 0:01:54.4]} 24... Bxa1 {[%clk 0:01:58.6]} 25. Ne1
{[%clk 0:01:54.4]} 25... e5 {[%clk 0:01:57.2]} 26. Nd3 {[%clk 0:01:53.7]} 26...
Bc8 {[%clk 0:01:56.5]} 27. f4 {[%clk 0:01:49.1]} 27... f6 {[%clk 0:01:53.2]} 28.
f5 {[%clk 0:01:39.7]} 28... Bd7 {[%clk 0:01:51.8]} 29. Kf2 {[%clk 0:01:31.4]}
29... Be8 {[%clk 0:01:52.2]} 30. Ke2 {[%clk 0:01:16.8]} 30... Bc3 {[%clk
0:01:51.4]} 31. Kd1 {[%clk 0:01:13.7]} 31... Bf7 {[%clk 0:01:51.9]} 32. Kc2
{[%clk 0:01:13.9]} 32... Bd4 {[%clk 0:01:52.2]} 33. Nc1 {[%clk 0:01:09.9]} 33...
Bc4 {[%clk 0:01:51.8]} 34. Nb3 {[%clk 0:01:04.6]} 34... Bxb3+ {[%clk 0:01:46]}
35. Kxb3 {[%clk 0:01:05]} 35... g6 {[%clk 0:01:34.7]} 36. g4 {[%clk 0:01:03.6]}
36... Kg7 {[%clk 0:01:30.6]} 37. Bf1 {[%clk 0:00:58.5]} 37... Kh6 {[%clk
0:01:29.8]} 38. h4 {[%clk 0:00:57.7]} 38... Bf2 {[%clk 0:01:29.4]} 39. Kc2
{[%clk 0:00:46.8]} 39... gxf5 {[%clk 0:01:17.7]} 40. exf5 {[%clk 0:00:46.4]}
40... Kg7 {[%clk 0:01:12.2]} 41. Be2 {[%clk 0:00:41.8]} 41... Kf7 {[%clk
0:01:06.2]} 42. g5 {[%clk 0:00:23.4]} 42... Bxh4 {[%clk 0:01:03.4]} 43. Bxb5
{[%clk 0:00:23.1]} 43... fxg5 {[%clk 0:00:46.8]} 44. Bxc6 {[%clk 0:00:22.7]}
44... g4 {[%clk 0:00:47.5]} 45. b5 {[%clk 0:00:21.1]} 45... Bf2 {[%clk
0:00:44.4]} 46. Bd5+ {[%clk 0:00:20.9]} 46... Kf6 {[%clk 0:00:38.8]} 47. c6
{[%clk 0:00:18]} 47... Bb6 {[%clk 0:00:39.4]} 48. Be4 {[%clk 0:00:15.4]} 48...
h5 {[%clk 0:00:40]} 49. Kd3 {[%clk 0:00:13.4]} 49... h4 {[%clk 0:00:40.6]} 50.
Ke2 {[%clk 0:00:12.1]} 50... h3 {[%clk 0:00:39.8]} 51. Kf1 {[%clk 0:00:08.7]}
51... g3 {[%clk 0:00:40.3]} 52. Bd5 {[%clk 0:00:02.8]} 52... Kxf5 {[%clk
0:00:38.2]} 0-1

[Event "Late-Titled-Tuesday-Blitz-May-14-2024"]
[Site "Chess.com"]
[Date "2024.05.14"]
[Round "7"]
[White "jbking07"]
[Black "KatakuriDono"]
[Result "1-0"]
[WhiteElo "2392"]
[BlackElo "2299"]
[TimeControl "180+1"]
[EndTime "15:16:58 PDT"]
[Termination "jbking07 won by resignation"]

1. e4 {[%clk 0:03:00.9]} 1... c5 {[%clk 0:02:59]} 2. Nf3 {[%clk 0:03:00]} 2...
Nc6 {[%clk 0:02:59.2]} 3. Bb5 {[%clk 0:02:59.5]} 3... e6 {[%clk 0:02:58.9]} 4.
O-O {[%clk 0:02:58.4]} 4... Nge7 {[%clk 0:02:58.7]} 5. Re1 {[%clk 0:02:58.8]}
5... a6 {[%clk 0:02:59.1]} 6. Bf1 {[%clk 0:02:59.2]} 6... b6 {[%clk 0:02:59.4]}
7. d4 {[%clk 0:02:59.4]} 7... cxd4 {[%clk 0:02:58.7]} 8. Nxd4 {[%clk 0:03:00.3]}
8... Nxd4 {[%clk 0:02:59.1]} 9. Qxd4 {[%clk 0:03:01.2]} 9... Nc6 {[%clk
0:02:59.4]} 10. Qd3 {[%clk 0:03:01.7]} 10... Bb7 {[%clk 0:02:55.7]} 11. Qg3
{[%clk 0:03:02]} 11... g6 {[%clk 0:02:46.2]} 12. e5 {[%clk 0:02:55]} 12... Bg7
{[%clk 0:02:45.9]} 13. Nc3 {[%clk 0:02:52.7]} 13... Qc7 {[%clk 0:02:41.4]} 14.
Bf4 {[%clk 0:02:50.2]} 14... O-O {[%clk 0:02:39]} 15. Rad1 {[%clk 0:02:42.9]}
15... Ne7 {[%clk 0:02:28.2]} 16. Rd2 {[%clk 0:02:23.7]} 16... Nd5 {[%clk
0:02:19.2]} 17. Nxd5 {[%clk 0:02:21.9]} 17... Bxd5 {[%clk 0:02:20.1]} 18. c4
{[%clk 0:02:21.4]} 18... Bc6 {[%clk 0:02:18.4]} 19. b4 {[%clk 0:02:18.9]} 19...
b5 {[%clk 0:02:13.5]} 20. c5 {[%clk 0:02:17.9]} 20... Bd5 {[%clk 0:02:12.1]} 21.
Be2 {[%clk 0:02:17.3]} 21... Qc6 {[%clk 0:02:08.7]} 22. Bf3 {[%clk 0:02:16.2]}
22... Bxf3 {[%clk 0:02:04.3]} 23. Qxf3 {[%clk 0:02:17.1]} 23... a5 {[%clk
0:02:02.9]} 24. a3 {[%clk 0:02:08.8]} 24... axb4 {[%clk 0:02:02.2]} 25. axb4
{[%clk 0:02:09.7]} 25... Ra4 {[%clk 0:01:57.5]} 26. Rd4 {[%clk 0:02:09.1]} 26...
Rfa8 {[%clk 0:01:54]} 27. Red1 {[%clk 0:02:05]} 27... h5 {[%clk 0:01:43.6]} 28.
h3 {[%clk 0:01:57.9]} 28... R8a7 {[%clk 0:01:39.8]} 29. Rb1 {[%clk 0:01:20.5]}
29... Kh7 {[%clk 0:01:36.6]} 30. Qxc6 {[%clk 0:01:16.2]} 30... dxc6 {[%clk
0:01:36.3]} 31. Rd6 {[%clk 0:01:15.3]} 31... R7a6 {[%clk 0:01:32.5]} 32. Rd7
{[%clk 0:01:10.1]} 32... Ra7 {[%clk 0:01:30.3]} 33. Rd6 {[%clk 0:01:04.3]} 33...
R7a6 {[%clk 0:01:30]} 34. Bg3 {[%clk 0:01:00.2]} 34... h4 {[%clk 0:01:18.8]} 35.
Bf4 {[%clk 0:00:54.9]} 35... Ra2 {[%clk 0:01:11.7]} 36. Re1 {[%clk 0:00:47.9]}
36... Rb2 {[%clk 0:01:08]} 37. Re4 {[%clk 0:00:47.4]} 37... Rb1+ {[%clk
0:01:03.2]} 38. Kh2 {[%clk 0:00:46.6]} 38... Rb2 {[%clk 0:01:03.6]} 39. Be3
{[%clk 0:00:44.7]} 39... g5 {[%clk 0:00:45.8]} 40. Bxg5 {[%clk 0:00:43.7]} 40...
Rxf2 {[%clk 0:00:45.4]} 41. Bxh4 {[%clk 0:00:36]} 41... Raa2 {[%clk 0:00:31.4]}
42. Bxf2 {[%clk 0:00:35]} 42... Rxf2 {[%clk 0:00:31.5]} 43. Rxc6 {[%clk
0:00:34.2]} 43... Rf5 {[%clk 0:00:31.1]} 44. Rb6 {[%clk 0:00:30.3]} 44... Bxe5+
{[%clk 0:00:30.5]} 45. Kg1 {[%clk 0:00:23.8]} 45... Bg3 {[%clk 0:00:30.3]} 46.
Rxb5 {[%clk 0:00:20.8]} 46... Rd5 {[%clk 0:00:30.3]} 47. Kf1 {[%clk 0:00:20.2]}
47... Rd1+ {[%clk 0:00:28.4]} 48. Ke2 {[%clk 0:00:20.4]} 48... f5 {[%clk
0:00:24.3]} 49. Rb7+ {[%clk 0:00:17.6]} 49... Kg8 {[%clk 0:00:24.1]} 50. Re3
{[%clk 0:00:17.3]} 50... Re1+ {[%clk 0:00:18.6]} 51. Kf3 {[%clk 0:00:17]} 51...
Rxe3+ {[%clk 0:00:17.1]} 52. Kxe3 {[%clk 0:00:17.5]} 52... f4+ {[%clk
0:00:17.8]} 53. Ke4 {[%clk 0:00:17.7]} 53... e5 {[%clk 0:00:18.6]} 54. Re7
{[%clk 0:00:17.5]} 1-0

[Event "Late-Titled-Tuesday-Blitz-May-14-2024"]
[Site "Chess.com"]
[Date "2024.05.14"]
[Round "7"]
[White "alexrustemov"]
[Black "Rital44"]
[Result "0-1"]
[WhiteElo "2898"]
[BlackElo "2721"]
[TimeControl "180+1"]
[EndTime "15:17:02 PDT"]
[Termination "Rital44 won by resignation"]

1. d4 {[%clk 0:02:57.7]} 1... f5 {[%clk 0:02:59.3]} 2. g3 {[%clk 0:02:57.2]}
2... Nf6 {[%clk 0:02:58.5]} 3. Bg2 {[%clk 0:02:57.6]} 3... g6 {[%clk 0:02:54.7]}
4. Nf3 {[%clk 0:02:57.9]} 4... Bg7 {[%clk 0:02:54.3]} 5. O-O {[%clk 0:02:58.3]}
5... O-O {[%clk 0:02:55]} 6. c4 {[%clk 0:02:58.4]} 6... d6 {[%clk 0:02:55.5]} 7.
Nc3 {[%clk 0:02:58.5]} 7... Qe8 {[%clk 0:02:53]} 8. d5 {[%clk 0:02:56.4]} 8...
a5 {[%clk 0:02:50.7]} 9. Be3 {[%clk 0:02:54.8]} 9... Na6 {[%clk 0:02:49.4]} 10.
Qd2 {[%clk 0:02:52.6]} 10... e5 {[%clk 0:02:43.6]} 11. dxe6 {[%clk 0:02:50.7]}
11... Bxe6 {[%clk 0:02:42.6]} 12. Ng5 {[%clk 0:02:42.2]} 12... Bc8 {[%clk
0:02:34.8]} 13. Bd4 {[%clk 0:02:34.3]} 13... h6 {[%clk 0:02:25.3]} 14. Nf3
{[%clk 0:02:33.7]} 14... Nc5 {[%clk 0:02:20.6]} 15. Rac1 {[%clk 0:02:26.3]}
15... Be6 {[%clk 0:02:13.8]} 16. b3 {[%clk 0:02:24.9]} 16... Nce4 {[%clk
0:01:36.5]} 17. Nxe4 {[%clk 0:02:09.6]} 17... fxe4 {[%clk 0:01:36.2]} 18. Ne1
{[%clk 0:01:50.6]} 18... Bf5 {[%clk 0:01:31.5]} 19. Nc2 {[%clk 0:01:49.5]} 19...
Qe6 {[%clk 0:01:23.4]} 20. Ne3 {[%clk 0:01:47.8]} 20... Bh3 {[%clk 0:01:22.7]}
21. Bxf6 {[%clk 0:01:46.5]} 21... Rxf6 {[%clk 0:01:20.3]} 22. Bxh3 {[%clk
0:01:41.7]} 22... Qxh3 {[%clk 0:01:19.9]} 23. Qd5+ {[%clk 0:01:42.4]} 23... Kh7
{[%clk 0:01:20.4]} 24. Qxe4 {[%clk 0:01:40.6]} 24... c6 {[%clk 0:01:17.3]} 25.
Rcd1 {[%clk 0:01:33.8]} 25... Raf8 {[%clk 0:01:08.9]} 26. Qg2 {[%clk 0:01:32.1]}
26... Qe6 {[%clk 0:01:03.6]} 27. Rd3 {[%clk 0:01:31.1]} 27... h5 {[%clk
0:00:56.6]} 28. h4 {[%clk 0:01:28.9]} 28... Bh6 {[%clk 0:00:54.5]} 29. a3 {[%clk
0:01:17.6]} 29... Rxf2 {[%clk 0:00:45.3]} 30. Rxf2 {[%clk 0:01:09.2]} 30... Bxe3
{[%clk 0:00:44.9]} 31. Rxe3 {[%clk 0:01:02.5]} 31... Qxe3 {[%clk 0:00:45.8]} 32.
b4 {[%clk 0:01:02.6]} 32... axb4 {[%clk 0:00:40]} 33. axb4 {[%clk 0:01:03.5]}
33... Kg7 {[%clk 0:00:37.1]} 34. b5 {[%clk 0:00:54]} 34... Rf5 {[%clk 0:00:34]}
35. bxc6 {[%clk 0:00:43.3]} 35... bxc6 {[%clk 0:00:32.5]} 36. Qh2 {[%clk
0:00:43.4]} 36... Kf6 {[%clk 0:00:30.7]} 37. Qg2 {[%clk 0:00:43.3]} 37... Ke5
{[%clk 0:00:28.5]} 38. Qh2 {[%clk 0:00:34.6]} 38... Kd4 {[%clk 0:00:23.5]} 39.
Qg2 {[%clk 0:00:31.7]} 39... Rxf2 {[%clk 0:00:19.9]} 40. Qxf2 {[%clk 0:00:32.6]}
40... Qxf2+ {[%clk 0:00:20.6]} 41. Kxf2 {[%clk 0:00:33]} 41... Kxc4 {[%clk
0:00:21.5]} 42. Ke3 {[%clk 0:00:32.3]} 42... Kd5 {[%clk 0:00:19.4]} 43. Kf4
{[%clk 0:00:30.1]} 43... c5 {[%clk 0:00:17.6]} 44. Ke3 {[%clk 0:00:24.6]} 44...
Ke5 {[%clk 0:00:17.5]} 45. Kd3 {[%clk 0:00:23.9]} 45... d5 {[%clk 0:00:17.9]}
46. Ke3 {[%clk 0:00:23.3]} 46... d4+ {[%clk 0:00:17.5]} 47. Kd3 {[%clk 0:00:23]}
47... Kd5 {[%clk 0:00:18.1]} 48. Kd2 {[%clk 0:00:14.1]} 48... Ke4 {[%clk
0:00:17.3]} 49. Kc2 {[%clk 0:00:13.6]} 49... c4 {[%clk 0:00:17.5]} 50. Kd2
{[%clk 0:00:13.8]} 50... d3 {[%clk 0:00:17.6]} 51. e3 {[%clk 0:00:11.7]} 51...
c3+ {[%clk 0:00:16.3]} 0-1